[Event "World Junior Chess Championship U20 2022"]
[White "Baenziger, Fabian"]
[Black "Horvath, Dominik"]
[WhiteFideId "1330110"]
[BlackFideId "1642561"]
[WhiteElo "2439"]
[BlackElo "2505"]
[Result "1/2-1/2"]
[Round "03"]
[TimeControl "5400+30"]
[Date "2022.10.13"]
[WhiteClock "1:10:19"]
[BlackClock "1:13:08"]

1. d4 {[%clk 1:30:56]}  d5 {[%clk 1:30:12]} 2. c4 {[%clk 1:31:17]}  e6 {[%clk 1:30:40]} 3. Nf3 {[%clk 1:31:35]}  Nf6 {[%clk 1:31:05]} 4. g3 {[%clk 1:31:58]}  Bb4+ {[%clk 1:28:46]} 5. Bd2 {[%clk 1:32:21]}  a5 {[%clk 1:29:01]} 6. Bg2 {[%clk 1:32:04]}  O-O {[%clk 1:29:24]} 7. Qc2 {[%clk 1:30:43]}  c5 {[%clk 1:29:50]} 8. cxd5 {[%clk 1:31:07]}  cxd4 {[%clk 1:30:16]} 9. Nxd4 {[%clk 1:30:56]}  Qb6 {[%clk 1:30:34]} 10. e3 {[%clk 1:31:18]}  exd5 {[%clk 1:31:01]} 11. O-O {[%clk 1:31:40]}  Nc6 {[%clk 1:31:29]} 12. Nxc6 {[%clk 1:31:36]}  bxc6 {[%clk 1:31:55]} 13. Rc1 {[%clk 1:30:24]}  Rb8 {[%clk 1:32:22]} 14. Nc3 {[%clk 1:30:37]}  h5 {[%clk 1:32:38]} 15. a3 {[%clk 1:28:59]}  Be7 {[%clk 1:32:54]} 16. Na4 {[%clk 1:29:23]}  Qc7 {[%clk 1:33:20]} 17. Qxc6 {[%clk 1:28:18]}  Qxc6 {[%clk 1:33:21]} 18. Rxc6 {[%clk 1:28:44]}  Bd7 {[%clk 1:33:46]} 19. Rc7 {[%clk 1:29:09]}  Bd8 {[%clk 1:30:34]} 20. Rxd7 {[%clk 1:29:32]}  Nxd7 {[%clk 1:31:01]} 21. Rd1 {[%clk 1:29:33]}  Nf6 {[%clk 1:20:55]} 22. Bc3 {[%clk 1:21:30]}  Rb5 {[%clk 1:12:39]} 23. b4 {[%clk 1:16:08]}  axb4 {[%clk 1:10:07]} 24. Bxb4 {[%clk 1:16:28]}  Re8 {[%clk 1:10:35]} 25. Nc3 {[%clk 1:16:45]}  Rb8 {[%clk 1:11:02]} 26. Nxd5 {[%clk 1:15:41]}  Nxd5 {[%clk 1:11:27]} 27. Rxd5 {[%clk 1:16:04]}  Be7 {[%clk 1:11:53]} 28. Rxh5 {[%clk 1:12:30]}  Bxb4 {[%clk 1:11:53]} 29. axb4 {[%clk 1:12:56]}  Rxb4 {[%clk 1:12:45]} 30. Rc5 {[%clk 1:09:53]}  Rb1+ {[%clk 1:13:08]} 31. Bf1 {[%clk 1:10:19]} 1/2-1/2


[Site "http://www.chessbomb.com"]

[Event "World Junior Chess Championship U20 2022"]
[White "Isik, Alparslan"]
[Black "Blohberger, Felix"]
[WhiteFideId "34506896"]
[BlackFideId "1632051"]
[WhiteElo "2377"]
[BlackElo "2493"]
[Result "1-0"]
[Round "03"]
[TimeControl "5400+30"]
[Date "2022.10.13"]
[WhiteClock "0:05:22"]
[BlackClock "0:00:57"]

1. d4 {[%clk 1:28:02]}  Nf6 {[%clk 1:30:36]} 2. Nf3 {[%clk 1:28:22]}  d5 {[%clk 1:30:43]} 3. c4 {[%clk 1:28:44]}  e6 {[%clk 1:30:16]} 4. Nc3 {[%clk 1:29:07]}  Bb4 {[%clk 1:30:02]} 5. Qa4+ {[%clk 1:24:17]}  Nc6 {[%clk 1:30:02]} 6. e3 {[%clk 1:24:35]}  O-O {[%clk 1:30:47]} 7. Bd2 {[%clk 1:24:27]}  dxc4 {[%clk 1:28:59]} 8. Bxc4 {[%clk 1:24:07]}  Bd6 {[%clk 1:29:24]} 9. Qc2 {[%clk 1:17:51]}  a6 {[%clk 1:26:39]} 10. Ne4 {[%clk 1:12:19]}  Nxe4 {[%clk 1:18:53]} 11. Qxe4 {[%clk 1:12:42]}  Bd7 {[%clk 1:18:51]} 12. O-O {[%clk 1:09:04]}  Qf6 {[%clk 1:14:36]} 13. Bc3 {[%clk 1:00:44]}  Qf5 {[%clk 1:05:50]} 14. Qxf5 {[%clk 0:58:06]}  exf5 {[%clk 1:06:13]} 15. Bb3 {[%clk 0:49:14]}  Ne7 {[%clk 1:00:52]} 16. Rfd1 {[%clk 0:47:11]}  h6 {[%clk 0:42:04]} 17. Rac1 {[%clk 0:46:03]}  Rfd8 {[%clk 0:40:19]} 18. d5 {[%clk 0:37:45]}  a5 {[%clk 0:31:45]} 19. a3 {[%clk 0:24:47]}  Kf8 {[%clk 0:27:05]} 20. Ne5 {[%clk 0:24:41]}  Bb5 {[%clk 0:24:03]} 21. g3 {[%clk 0:17:02]}  b6 {[%clk 0:22:19]} 22. Bd4 {[%clk 0:13:45]}  Rac8 {[%clk 0:14:12]} 23. Nc4 {[%clk 0:13:34]}  Bxc4 {[%clk 0:12:33]} 24. Bxc4 {[%clk 0:13:57]}  Rb8 {[%clk 0:10:49]} 25. Ba2 {[%clk 0:12:14]}  Ng6 {[%clk 0:09:01]} 26. f4 {[%clk 0:11:55]}  Ne7 {[%clk 0:08:37]} 27. Kf2 {[%clk 0:11:27]}  h5 {[%clk 0:05:37]} 28. Kf3 {[%clk 0:11:37]}  Ng8 {[%clk 0:03:59]} 29. h3 {[%clk 0:11:43]}  Nh6 {[%clk 0:03:11]} 30. Rc6 {[%clk 0:07:26]}  f6 {[%clk 0:03:23]} 31. Rdc1 {[%clk 0:07:01]}  Rb7 {[%clk 0:03:08]} 32. Bb1 {[%clk 0:06:18]}  Kf7 {[%clk 0:03:09]} 33. e4 {[%clk 0:04:36]}  fxe4+ {[%clk 0:03:33]} 34. Bxe4 {[%clk 0:05:02]}  g6 {[%clk 0:02:33]} 35. g4 {[%clk 0:05:00]}  hxg4+ {[%clk 0:00:36]} 36. hxg4 {[%clk 0:05:30]}  Re8 {[%clk 0:00:41]} 37. Rh1 {[%clk 0:05:20]}  f5 {[%clk 0:00:33]} 38. gxf5 {[%clk 0:05:03]}  gxf5 {[%clk 0:00:57]} 39. Bd3 {[%clk 0:05:22]} 1-0


[Site "http://www.chessbomb.com"]

[Event "World Junior Chess Championship U20 2022"]
[White "Rohith, Krishna S"]
[Black "Gorshtein, Ido"]
[WhiteFideId "46617051"]
[BlackFideId "2815532"]
[WhiteElo "2370"]
[BlackElo "2471"]
[Result "1/2-1/2"]
[Round "03"]
[TimeControl "5400+30"]
[Date "2022.10.13"]
[WhiteClock "0:45:56"]
[BlackClock "0:20:03"]

1. d4 {[%clk 1:30:43]}  f5 {[%clk 1:28:26]} 2. g3 {[%clk 1:30:32]}  Nf6 {[%clk 1:28:50]} 3. Bg2 {[%clk 1:30:54]}  g6 {[%clk 1:29:13]} 4. c4 {[%clk 1:30:26]}  Bg7 {[%clk 1:29:33]} 5. Nc3 {[%clk 1:30:45]}  O-O {[%clk 1:29:12]} 6. Nf3 {[%clk 1:30:04]}  d6 {[%clk 1:29:13]} 7. O-O {[%clk 1:28:59]}  c6 {[%clk 1:29:39]} 8. b3 {[%clk 1:28:59]}  Qc7 {[%clk 1:29:55]} 9. Qc2 {[%clk 1:22:33]}  Na6 {[%clk 1:24:16]} 10. Ba3 {[%clk 1:16:19]}  b5 {[%clk 1:07:04]} 11. Bb2 {[%clk 1:16:34]}  Rb8 {[%clk 1:03:22]} 12. cxb5 {[%clk 1:07:28]}  cxb5 {[%clk 1:03:23]} 13. Rac1 {[%clk 1:07:46]}  Bb7 {[%clk 0:57:19]} 14. Qd2 {[%clk 0:54:05]}  Qd7 {[%clk 0:57:13]} 15. Rfd1 {[%clk 0:53:07]}  Nc7 {[%clk 0:52:17]} 16. e3 {[%clk 0:52:14]}  Rfc8 {[%clk 0:44:14]} 17. Ne2 {[%clk 0:49:45]}  Ncd5 {[%clk 0:44:29]} 18. Qa5 {[%clk 0:49:39]}  a6 {[%clk 0:41:10]} 19. Ne1 {[%clk 0:45:43]}  Bh6 {[%clk 0:37:17]} 20. Nf4 {[%clk 0:42:48]}  Nxf4 {[%clk 0:37:18]} 21. exf4 {[%clk 0:42:18]}  Bg7 {[%clk 0:36:18]} 22. d5 {[%clk 0:36:31]}  Rxc1 {[%clk 0:35:12]} 23. Bxc1 {[%clk 0:36:43]}  Ne4 {[%clk 0:23:17]} 24. Bxe4 {[%clk 0:32:33]}  fxe4 {[%clk 0:23:44]} 25. Ng2 {[%clk 0:32:56]}  Rc8 {[%clk 0:23:04]} 26. Ba3 {[%clk 0:30:12]}  Rc2 {[%clk 0:19:50]} 27. Bb4 {[%clk 0:29:44]}  Qc7 {[%clk 0:14:47]} 28. Qxc7 {[%clk 0:30:06]}  Rxc7 {[%clk 0:15:15]} 29. Ne3 {[%clk 0:30:26]}  Kf7 {[%clk 0:15:36]} 30. Kg2 {[%clk 0:26:33]}  Rd7 {[%clk 0:14:07]} 31. f3 {[%clk 0:26:12]}  exf3+ {[%clk 0:14:17]} 32. Kxf3 {[%clk 0:26:36]}  e6 {[%clk 0:14:20]} 33. Ke2 {[%clk 0:26:21]}  exd5 {[%clk 0:14:21]} 34. Nxd5 {[%clk 0:26:45]}  Ke6 {[%clk 0:13:19]} 35. Nb6 {[%clk 0:25:43]}  Rd8 {[%clk 0:13:16]} 36. Kd3 {[%clk 0:26:01]}  Kf5 {[%clk 0:08:40]} 37. Re1 {[%clk 0:26:18]}  Bf6 {[%clk 0:08:56]} 38. Bc3 {[%clk 0:25:12]}  Bxc3 {[%clk 0:08:53]} 39. Kxc3 {[%clk 0:25:36]}  Be4 {[%clk 0:08:40]} 40. Kd4 {[%clk 0:25:35]}  d5 {[%clk 0:08:51]} 41. h3 {[%clk 0:23:51]}  h5 {[%clk 0:07:57]} 42. Rg1 {[%clk 0:21:28]}  b4 {[%clk 0:22:48]} 43. Na4 {[%clk 0:45:56]}  a5 {[%clk 0:20:03]} 1/2-1/2


[Site "http://www.chessbomb.com"]

[Event "World Junior Chess Championship U20 2022"]
[White "Abdurakhmonov, Mukhammadali"]
[Black "Nogerbek, Kazybek"]
[WhiteFideId "14207346"]
[BlackFideId "13710427"]
[WhiteElo "2345"]
[BlackElo "2467"]
[Result "1-0"]
[Round "03"]
[TimeControl "5400+30"]
[Date "2022.10.13"]
[WhiteClock "0:06:17"]
[BlackClock "0:08:47"]

1. d4 {[%clk 1:28:27]}  d5 {[%clk 1:30:40]} 2. c4 {[%clk 1:28:26]}  c6 {[%clk 1:30:57]} 3. Nc3 {[%clk 1:23:53]}  Nf6 {[%clk 1:30:47]} 4. e3 {[%clk 1:22:54]}  e6 {[%clk 1:30:21]} 5. Nf3 {[%clk 1:22:20]}  Nbd7 {[%clk 1:29:49]} 6. Qc2 {[%clk 1:22:24]}  Bd6 {[%clk 1:28:08]} 7. cxd5 {[%clk 1:12:56]}  exd5 {[%clk 1:26:27]} 8. Bd3 {[%clk 1:13:12]}  Qe7 {[%clk 1:24:37]} 9. b3 {[%clk 1:11:21]}  O-O {[%clk 1:22:08]} 10. h3 {[%clk 1:10:52]}  Re8 {[%clk 1:20:32]} 11. O-O {[%clk 1:09:09]}  Ne4 {[%clk 1:15:55]} 12. a3 {[%clk 1:03:38]}  Ndf6 {[%clk 1:13:21]} 13. Na4 {[%clk 1:02:24]}  Bf5 {[%clk 1:08:55]} 14. Bb2 {[%clk 1:01:18]}  Bg6 {[%clk 1:08:50]} 15. b4 {[%clk 0:53:49]}  a5 {[%clk 0:55:10]} 16. Nb6 {[%clk 0:51:52]}  Ra7 {[%clk 0:53:16]} 17. b5 {[%clk 0:51:04]}  Bc7 {[%clk 0:50:05]} 18. Na4 {[%clk 0:51:05]}  cxb5 {[%clk 0:50:15]} 19. Bxb5 {[%clk 0:48:53]}  Nd6 {[%clk 0:34:47]} 20. Qb3 {[%clk 0:47:36]}  Nxb5 {[%clk 0:26:45]} 21. Qxb5 {[%clk 0:47:58]}  Bf5 {[%clk 0:26:06]} 22. Ne5 {[%clk 0:44:39]}  Bxe5 {[%clk 0:22:04]} 23. dxe5 {[%clk 0:45:03]}  Ne4 {[%clk 0:22:27]} 24. Nb6 {[%clk 0:43:49]}  Rf8 {[%clk 0:17:33]} 25. Nxd5 {[%clk 0:35:08]}  Qh4 {[%clk 0:17:45]} 26. f3 {[%clk 0:34:37]}  Ng3 {[%clk 0:16:19]} 27. Rf2 {[%clk 0:34:27]}  Ra6 {[%clk 0:13:08]} 28. Qc5 {[%clk 0:29:16]}  Re6 {[%clk 0:12:06]} 29. Qd4 {[%clk 0:21:45]}  Qxd4 {[%clk 0:07:19]} 30. Bxd4 {[%clk 0:21:54]}  h5 {[%clk 0:07:26]} 31. h4 {[%clk 0:21:57]}  Bd3 {[%clk 0:07:50]} 32. Nf4 {[%clk 0:22:16]}  Bc4 {[%clk 0:08:07]} 33. Nxe6 {[%clk 0:18:08]}  fxe6 {[%clk 0:08:30]} 34. Bb6 {[%clk 0:18:14]}  a4 {[%clk 0:08:41]} 35. Rd1 {[%clk 0:12:43]}  Kh7 {[%clk 0:08:42]} 36. Rd7 {[%clk 0:09:46]}  Bb5 {[%clk 0:08:34]} 37. Rc7 {[%clk 0:08:15]}  Nf5 {[%clk 0:08:29]} 38. e4 {[%clk 0:06:43]}  Nxh4 {[%clk 0:08:50]} 39. Rxb7 {[%clk 0:07:04]}  Rc8 {[%clk 0:08:47]} 40. Be3 {[%clk 0:06:17]} 1-0


[Site "http://www.chessbomb.com"]

[Event "World Junior Chess Championship U20 2022"]
[White "Mendonca, Leon Luke"]
[Black "Lux, Hugo de Melo"]
[WhiteFideId "35028561"]
[BlackFideId "2138298"]
[WhiteElo "2558"]
[BlackElo "2309"]
[Result "1-0"]
[Round "03"]
[TimeControl "5400+30"]
[Date "2022.10.13"]
[WhiteClock "0:14:41"]
[BlackClock "0:01:31"]

1. d4 {[%clk 1:30:42]}  Nf6 {[%clk 1:28:55]} 2. c4 {[%clk 1:30:15]}  e6 {[%clk 1:29:19]} 3. Nf3 {[%clk 1:30:22]}  c5 {[%clk 1:29:43]} 4. d5 {[%clk 1:30:48]}  exd5 {[%clk 1:30:09]} 5. cxd5 {[%clk 1:31:13]}  d6 {[%clk 1:30:36]} 6. Nc3 {[%clk 1:31:02]}  g6 {[%clk 1:31:00]} 7. Nd2 {[%clk 1:31:28]}  Bg7 {[%clk 1:31:00]} 8. e4 {[%clk 1:31:55]}  O-O {[%clk 1:31:17]} 9. Be2 {[%clk 1:32:22]}  Na6 {[%clk 1:30:15]} 10. O-O {[%clk 1:32:41]}  Nc7 {[%clk 1:30:38]} 11. a4 {[%clk 1:32:53]}  Re8 {[%clk 1:30:42]} 12. f3 {[%clk 1:31:51]}  b6 {[%clk 1:29:31]} 13. Kh1 {[%clk 1:29:33]}  Rb8 {[%clk 1:28:55]} 14. Nc4 {[%clk 1:26:27]}  Ba6 {[%clk 1:28:57]} 15. Bg5 {[%clk 1:25:10]}  Qd7 {[%clk 1:26:34]} 16. Qd2 {[%clk 1:17:22]}  Bxc4 {[%clk 1:22:05]} 17. Bxc4 {[%clk 1:17:50]}  a6 {[%clk 1:22:21]} 18. Bd3 {[%clk 1:09:08]}  Rb7 {[%clk 1:09:42]} 19. f4 {[%clk 0:51:40]}  Nh5 {[%clk 0:46:05]} 20. f5 {[%clk 0:39:13]}  gxf5 {[%clk 0:07:13]} 21. Qd1 {[%clk 0:20:19]}  fxe4 {[%clk 0:00:50]} 22. Bxe4 {[%clk 0:19:34]}  Bxc3 {[%clk 0:00:37]} 23. Bf5 {[%clk 0:15:04]}  Qxf5 {[%clk 0:00:35]} 24. Rxf5 {[%clk 0:15:25]}  Re1+ {[%clk 0:00:59]} 25. Qxe1 {[%clk 0:15:52]}  Bxe1 {[%clk 0:01:23]} 26. Rxe1 {[%clk 0:16:15]}  Ng7 {[%clk 0:01:40]} 27. Rf3 {[%clk 0:16:04]}  Nxd5 {[%clk 0:01:31]} 28. Rd3 {[%clk 0:16:00]}  Nc7 {[%clk 0:00:42]} 29. Re7 {[%clk 0:13:44]}  Nge8 {[%clk 0:00:32]} 30. Bh6 {[%clk 0:13:50]}  d5 {[%clk 0:00:38]} 31. Rg3+ {[%clk 0:14:11]}  Kh8 {[%clk 0:01:07]} 32. Rxf7 {[%clk 0:14:28]}  Nd6 {[%clk 0:01:31]} 33. Rf8# {[%clk 0:14:41]} 1-0


[Site "http://www.chessbomb.com"]

[Event "World Junior Chess Championship U20 2022"]
[White "Martins, Bruno Andre Leite"]
[Black "Muradli, Mahammad"]
[WhiteFideId "1942255"]
[BlackFideId "13409301"]
[WhiteElo "2306"]
[BlackElo "2550"]
[Result "1-0"]
[Round "03"]
[TimeControl "5400+30"]
[Date "2022.10.13"]
[WhiteClock "0:07:23"]
[BlackClock "0:05:06"]

1. e4 {[%clk 1:30:42]}  c5 {[%clk 1:25:24]} 2. Nf3 {[%clk 1:31:07]}  d6 {[%clk 1:25:49]} 3. d4 {[%clk 1:31:30]}  cxd4 {[%clk 1:26:15]} 4. Nxd4 {[%clk 1:31:53]}  Nf6 {[%clk 1:26:37]} 5. Nc3 {[%clk 1:32:19]}  a6 {[%clk 1:26:59]} 6. Rg1 {[%clk 1:32:19]}  h5 {[%clk 1:27:07]} 7. h3 {[%clk 1:31:31]}  g6 {[%clk 1:27:29]} 8. g4 {[%clk 1:25:43]}  Bg7 {[%clk 1:27:33]} 9. g5 {[%clk 1:22:41]}  Nfd7 {[%clk 1:27:46]} 10. Be3 {[%clk 1:22:45]}  Nc6 {[%clk 1:27:38]} 11. Be2 {[%clk 1:16:23]}  O-O {[%clk 1:22:43]} 12. Qd2 {[%clk 1:13:39]}  Nc5 {[%clk 1:07:09]} 13. O-O-O {[%clk 1:05:00]}  Qa5 {[%clk 1:05:27]} 14. Kb1 {[%clk 1:01:42]}  Be6 {[%clk 1:02:46]} 15. f3 {[%clk 0:56:21]}  Rfc8 {[%clk 0:56:13]} 16. Nd5 {[%clk 0:52:22]}  Qxd2 {[%clk 0:52:59]} 17. Rxd2 {[%clk 0:52:44]}  Bxd5 {[%clk 0:51:57]} 18. exd5 {[%clk 0:53:04]}  Nxd4 {[%clk 0:52:13]} 19. Bxd4 {[%clk 0:53:28]}  Bxd4 {[%clk 0:52:12]} 20. Rxd4 {[%clk 0:53:52]}  e5 {[%clk 0:52:13]} 21. dxe6 {[%clk 0:52:17]}  Nxe6 {[%clk 0:52:37]} 22. Rb4 {[%clk 0:45:19]}  Rc5 {[%clk 0:48:44]} 23. h4 {[%clk 0:42:04]}  Re5 {[%clk 0:36:17]} 24. Bc4 {[%clk 0:33:06]}  d5 {[%clk 0:26:36]} 25. Bb3 {[%clk 0:27:49]}  b5 {[%clk 0:19:33]} 26. Rd1 {[%clk 0:24:10]}  Rd8 {[%clk 0:15:58]} 27. a4 {[%clk 0:20:31]}  bxa4 {[%clk 0:15:36]} 28. Rxa4 {[%clk 0:15:07]}  Rd6 {[%clk 0:16:00]} 29. Ra5 {[%clk 0:13:52]}  Nf4 {[%clk 0:16:15]} 30. Rd4 {[%clk 0:11:11]}  Rf5 {[%clk 0:15:19]} 31. c3 {[%clk 0:07:46]}  Ng2 {[%clk 0:11:55]} 32. Raxd5 {[%clk 0:07:07]}  Rdxd5 {[%clk 0:11:06]} 33. Bxd5 {[%clk 0:06:33]}  Nxh4 {[%clk 0:10:56]} 34. f4 {[%clk 0:06:46]}  Kg7 {[%clk 0:08:36]} 35. c4 {[%clk 0:07:10]}  f6 {[%clk 0:03:42]} 36. Be6 {[%clk 0:07:20]}  Rc5 {[%clk 0:04:11]} 37. Rd7+ {[%clk 0:07:34]}  Kh8 {[%clk 0:04:41]} 38. gxf6 {[%clk 0:07:23]}  Rc8 {[%clk 0:05:06]} 1-0


[Site "http://www.chessbomb.com"]

[Event "World Junior Chess Championship U20 2022"]
[White "Iniyan, P"]
[Black "Manish, Anto Cristiano F"]
[WhiteFideId "25002767"]
[BlackFideId "25095927"]
[WhiteElo "2541"]
[BlackElo "2332"]
[Result "1-0"]
[Round "03"]
[TimeControl "5400+30"]
[Date "2022.10.13"]
[WhiteClock "0:38:22"]
[BlackClock "0:47:39"]

1. d4 {[%clk 0:00:00]}  Nf6 {[%clk 1:30:57]} 2. c4 {[%clk 1:29:07]}  e6 {[%clk 1:31:19]} 3. Nf3 {[%clk 1:29:29]}  d5 {[%clk 1:31:36]} 4. Nc3 {[%clk 1:29:52]}  c5 {[%clk 1:32:00]} 5. cxd5 {[%clk 1:29:30]}  Nxd5 {[%clk 1:32:00]} 6. e4 {[%clk 1:29:46]}  Nxc3 {[%clk 1:32:21]} 7. bxc3 {[%clk 1:30:06]}  cxd4 {[%clk 1:32:43]} 8. cxd4 {[%clk 1:30:27]}  Bb4+ {[%clk 1:32:51]} 9. Bd2 {[%clk 1:30:46]}  Bxd2+ {[%clk 1:32:23]} 10. Qxd2 {[%clk 1:31:07]}  O-O {[%clk 1:32:23]} 11. Bc4 {[%clk 1:31:28]}  Nd7 {[%clk 1:32:51]} 12. O-O {[%clk 1:31:40]}  b6 {[%clk 1:33:10]} 13. Rad1 {[%clk 1:27:11]}  Bb7 {[%clk 1:31:02]} 14. Rfe1 {[%clk 1:27:19]}  Rc8 {[%clk 1:30:09]} 15. Bb3 {[%clk 1:26:49]}  h6 {[%clk 1:29:36]} 16. h3 {[%clk 1:18:20]}  Nf6 {[%clk 1:29:31]} 17. Qf4 {[%clk 1:18:38]}  Qc7 {[%clk 1:25:35]} 18. Ne5 {[%clk 1:03:42]}  Nd7 {[%clk 1:16:28]} 19. Nd3 {[%clk 0:56:44]}  Nf6 {[%clk 1:10:01]} 20. Ne5 {[%clk 0:55:23]}  Nd7 {[%clk 1:09:43]} 21. Nd3 {[%clk 0:54:26]}  Nf6 {[%clk 1:09:04]} 22. Qxc7 {[%clk 0:54:46]}  Rxc7 {[%clk 1:09:25]} 23. f3 {[%clk 0:55:13]}  Rd8 {[%clk 1:06:24]} 24. Nf4 {[%clk 0:55:32]}  g5 {[%clk 1:02:18]} 25. Ne2 {[%clk 0:55:54]}  b5 {[%clk 0:58:05]} 26. d5 {[%clk 0:49:17]}  exd5 {[%clk 0:52:47]} 27. e5 {[%clk 0:49:31]}  Ne8 {[%clk 0:50:17]} 28. Nd4 {[%clk 0:47:33]}  a6 {[%clk 0:50:16]} 29. Nf5 {[%clk 0:38:22]}  Kh7 {[%clk 0:47:39]} 1-0


[Site "http://www.chessbomb.com"]

[Event "World Junior Chess Championship U20 2022"]
[White "Gaal, Zsoka"]
[Black "Davtyan, Artur"]
[WhiteFideId "777765"]
[BlackFideId "13308327"]
[WhiteElo "2298"]
[BlackElo "2517"]
[Result "0-1"]
[Round "03"]
[TimeControl "5400+30"]
[Date "2022.10.13"]
[WhiteClock "0:01:31"]
[BlackClock "0:10:10"]

1. Nf3 {[%clk 1:30:52]}  Nf6 {[%clk 1:26:28]} 2. g3 {[%clk 1:31:08]}  b5 {[%clk 1:26:49]} 3. Bg2 {[%clk 1:31:25]}  Bb7 {[%clk 1:27:13]} 4. d4 {[%clk 1:31:41]}  e6 {[%clk 1:27:10]} 5. O-O {[%clk 1:32:00]}  Be7 {[%clk 1:27:27]} 6. Bg5 {[%clk 1:31:35]}  O-O {[%clk 1:27:45]} 7. Qd3 {[%clk 1:28:31]}  d5 {[%clk 1:27:57]} 8. Qxb5 {[%clk 1:23:25]}  Ba6 {[%clk 1:24:42]} 9. Qa4 {[%clk 1:21:00]}  Bxe2 {[%clk 1:23:01]} 10. Re1 {[%clk 1:20:36]}  Bxf3 {[%clk 1:14:48]} 11. Bxf3 {[%clk 1:20:56]}  c6 {[%clk 1:12:08]} 12. c3 {[%clk 1:12:46]}  Qc7 {[%clk 0:59:43]} 13. Nd2 {[%clk 1:08:05]}  Nbd7 {[%clk 0:59:05]} 14. Rac1 {[%clk 1:01:54]}  Rfb8 {[%clk 0:47:20]} 15. c4 {[%clk 0:55:43]}  Qb7 {[%clk 0:31:50]} 16. Bf4 {[%clk 0:40:56]}  Rc8 {[%clk 0:31:19]} 17. c5 {[%clk 0:30:48]}  a5 {[%clk 0:30:20]} 18. Qc2 {[%clk 0:28:54]}  Bd8 {[%clk 0:30:00]} 19. Be2 {[%clk 0:25:01]}  Bc7 {[%clk 0:24:58]} 20. Bxc7 {[%clk 0:25:02]}  Rxc7 {[%clk 0:25:26]} 21. Bd3 {[%clk 0:22:03]}  Qb4 {[%clk 0:21:57]} 22. Nf3 {[%clk 0:21:32]}  a4 {[%clk 0:18:32]} 23. Rcd1 {[%clk 0:18:31]}  Rb8 {[%clk 0:18:32]} 24. Re2 {[%clk 0:18:52]}  h6 {[%clk 0:18:14]} 25. Qc1 {[%clk 0:18:44]}  Rcb7 {[%clk 0:18:37]} 26. Qf4 {[%clk 0:13:41]}  Qa5 {[%clk 0:16:29]} 27. Rdd2 {[%clk 0:13:42]}  Rb4 {[%clk 0:07:09]} 28. a3 {[%clk 0:11:41]}  Rb3 {[%clk 0:05:07]} 29. h4 {[%clk 0:07:56]}  Qa8 {[%clk 0:02:06]} 30. g4 {[%clk 0:07:42]}  Ne4 {[%clk 0:02:32]} 31. Bxe4 {[%clk 0:06:45]}  dxe4 {[%clk 0:03:01]} 32. Ne5 {[%clk 0:05:56]}  Nxe5 {[%clk 0:02:57]} 33. Qxe5 {[%clk 0:03:39]}  Rd8 {[%clk 0:03:27]} 34. Qxe4 {[%clk 0:03:26]}  Rd5 {[%clk 0:03:56]} 35. f4 {[%clk 0:02:14]}  Rg3+ {[%clk 0:03:32]} 36. Rg2 {[%clk 0:02:08]}  Rxg2+ {[%clk 0:04:01]} 37. Kxg2 {[%clk 0:02:27]}  Qd8 {[%clk 0:04:30]} 38. Kg3 {[%clk 0:02:11]}  h5 {[%clk 0:01:47]} 39. g5 {[%clk 0:02:00]}  Rxc5 {[%clk 0:01:44]} 40. dxc5 {[%clk 0:02:06]}  Qxd2 {[%clk 0:02:12]} 41. Qxc6 {[%clk 0:27:20]}  Qe1+ {[%clk 0:27:33]} 42. Kg2 {[%clk 0:24:12]}  Qe2+ {[%clk 0:27:31]} 43. Kg1 {[%clk 0:23:59]}  Qe3+ {[%clk 0:22:12]} 44. Kg2 {[%clk 0:23:33]}  Qxf4 {[%clk 0:19:29]} 45. Qa8+ {[%clk 0:11:27]}  Kh7 {[%clk 0:19:51]} 46. c6 {[%clk 0:10:47]}  Qe4+ {[%clk 0:14:30]} 47. Kf1 {[%clk 0:10:08]}  Qb1+ {[%clk 0:14:41]} 48. Kf2 {[%clk 0:08:21]}  Qxb2+ {[%clk 0:15:05]} 49. Ke1 {[%clk 0:08:03]}  Qxa3 {[%clk 0:13:38]} 50. Qb7 {[%clk 0:07:57]}  Qc1+ {[%clk 0:13:51]} 51. Ke2 {[%clk 0:05:23]}  a3 {[%clk 0:11:49]} 52. Qxf7 {[%clk 0:03:43]}  Qxc6 {[%clk 0:11:55]} 53. Qa7 {[%clk 0:00:46]}  Qc2+ {[%clk 0:10:42]} 54. Ke3 {[%clk 0:01:10]}  a2 {[%clk 0:09:14]} 55. Qd4 {[%clk 0:01:20]}  Qc1+ {[%clk 0:09:06]} 56. Kf2 {[%clk 0:00:43]}  a1=Q {[%clk 0:09:21]} 57. Qd3+ {[%clk 0:01:06]}  g6 {[%clk 0:09:43]} 58. Qd7+ {[%clk 0:01:31]}  Qg7 {[%clk 0:10:10]} 0-1


[Site "http://www.chessbomb.com"]

[Event "World Junior Chess Championship U20 2022"]
[White "Ramoutar, Alan-Safar"]
[Black "Carlo, Emanuele"]
[WhiteFideId "7704224"]
[BlackFideId "2825380"]
[WhiteElo "2449"]
[BlackElo "2306"]
[Result "1/2-1/2"]
[Round "03"]
[TimeControl "5400+30"]
[Date "2022.10.13"]
[WhiteClock "0:23:38"]
[BlackClock "0:18:43"]

1. e4 {[%clk 1:30:56]}  c5 {[%clk 1:30:53]} 2. Nf3 {[%clk 1:31:08]}  d6 {[%clk 1:31:18]} 3. d4 {[%clk 1:31:27]}  cxd4 {[%clk 1:31:46]} 4. Nxd4 {[%clk 1:31:52]}  Nf6 {[%clk 1:32:03]} 5. Bb5+ {[%clk 1:32:13]}  Nbd7 {[%clk 1:29:15]} 6. Bd3 {[%clk 1:32:18]}  a6 {[%clk 1:26:53]} 7. c4 {[%clk 1:32:15]}  Nc5 {[%clk 1:25:19]} 8. Nc3 {[%clk 1:31:43]}  Nxd3+ {[%clk 1:25:05]} 9. Qxd3 {[%clk 1:32:09]}  g6 {[%clk 1:25:05]} 10. O-O {[%clk 1:31:28]}  Bg7 {[%clk 1:25:06]} 11. Re1 {[%clk 1:25:28]}  O-O {[%clk 1:24:49]} 12. Bg5 {[%clk 1:25:47]}  Re8 {[%clk 1:14:19]} 13. Rad1 {[%clk 1:25:23]}  Bd7 {[%clk 1:10:57]} 14. h3 {[%clk 1:22:03]}  h6 {[%clk 1:04:02]} 15. Bc1 {[%clk 1:21:34]}  Rc8 {[%clk 1:02:57]} 16. Nf3 {[%clk 1:20:04]}  Qc7 {[%clk 1:00:59]} 17. e5 {[%clk 1:12:21]}  dxe5 {[%clk 0:57:08]} 18. Nxe5 {[%clk 1:12:28]}  Bf5 {[%clk 0:55:04]} 19. Qf3 {[%clk 1:08:13]}  Rcd8 {[%clk 0:41:34]} 20. Bf4 {[%clk 1:06:02]}  Rxd1 {[%clk 0:40:17]} 21. Rxd1 {[%clk 1:05:19]}  Qc8 {[%clk 0:38:42]} 22. g4 {[%clk 0:58:36]}  Be6 {[%clk 0:38:02]} 23. b3 {[%clk 0:45:12]}  h5 {[%clk 0:32:48]} 24. Nd5 {[%clk 0:29:33]}  hxg4 {[%clk 0:32:29]} 25. Nxf6+ {[%clk 0:29:51]}  exf6 {[%clk 0:32:20]} 26. Nxg4 {[%clk 0:30:09]}  b5 {[%clk 0:30:31]} 27. cxb5 {[%clk 0:28:09]}  axb5 {[%clk 0:30:39]} 28. Rc1 {[%clk 0:27:53]}  Qa8 {[%clk 0:28:36]} 29. Qxa8 {[%clk 0:27:09]}  Rxa8 {[%clk 0:29:04]} 30. Rc2 {[%clk 0:25:45]}  g5 {[%clk 0:19:32]} 31. Bd6 {[%clk 0:25:22]}  f5 {[%clk 0:18:43]} 32. Ne5 {[%clk 0:23:38]} 1/2-1/2


[Site "http://www.chessbomb.com"]